[Event "Titled Tuesday Blitz September 13 Early 2022"]
[White "Bortnyk, Olexandr"]
[Black "Csonka, Balazs"]
[WhiteFideId "14120828"]
[BlackFideId "742910"]
[WhiteElo "2723"]
[BlackElo "2404"]
[Result "1-0"]
[Round "06"]
[TimeControl "180+1"]
[Date "2022.09.13"]
[WhiteClock "0:00:05"]
[BlackClock "0:00:01"]

1. d4 {[%clk 0:03:00]}  d5 {[%clk 0:02:56]} 2. Nc3 {[%clk 0:03:01]}  e6 {[%clk 0:02:52]} 3. e4 {[%clk 0:03:01]}  Nf6 {[%clk 0:02:47]} 4. Bg5 {[%clk 0:03:00]}  dxe4 {[%clk 0:02:46]} 5. Nxe4 {[%clk 0:03:01]}  Be7 {[%clk 0:02:46]} 6. Bxf6 {[%clk 0:03:02]}  gxf6 {[%clk 0:02:44]} 7. Nf3 {[%clk 0:03:03]}  f5 {[%clk 0:02:42]} 8. Nc3 {[%clk 0:03:03]}  a6 {[%clk 0:02:40]} 9. g3 {[%clk 0:03:02]}  b5 {[%clk 0:02:39]} 10. Bg2 {[%clk 0:03:03]}  Bb7 {[%clk 0:02:39]} 11. O-O {[%clk 0:03:04]}  O-O {[%clk 0:02:35]} 12. Qd2 {[%clk 0:03:01]}  Bf6 {[%clk 0:01:58]} 13. Qh6 {[%clk 0:03:01]}  Bg7 {[%clk 0:01:54]} 14. Qh5 {[%clk 0:03:00]}  Nd7 {[%clk 0:01:36]} 15. Rad1 {[%clk 0:02:50]}  Nf6 {[%clk 0:01:31]} 16. Qh3 {[%clk 0:02:50]}  Ne4 {[%clk 0:01:21]} 17. Ne2 {[%clk 0:02:43]}  Qe7 {[%clk 0:01:11]} 18. Nf4 {[%clk 0:02:41]}  Rad8 {[%clk 0:01:07]} 19. c3 {[%clk 0:02:42]}  b4 {[%clk 0:00:58]} 20. c4 {[%clk 0:02:18]}  c5 {[%clk 0:00:54]} 21. d5 {[%clk 0:02:16]}  Bxb2 {[%clk 0:00:50]} 22. Rfe1 {[%clk 0:02:03]}  Bc3 {[%clk 0:00:36]} 23. Re3 {[%clk 0:01:35]}  Bg7 {[%clk 0:00:35]} 24. Rde1 {[%clk 0:01:22]}  Rfe8 {[%clk 0:00:22]} 25. Rxe4 {[%clk 0:01:08]}  fxe4 {[%clk 0:00:23]} 26. Nh4 {[%clk 0:01:08]}  exd5 {[%clk 0:00:16]} 27. Nf5 {[%clk 0:01:08]}  Qg5 {[%clk 0:00:16]} 28. Nh5 {[%clk 0:00:55]}  Bc3 {[%clk 0:00:09]} 29. Rf1 {[%clk 0:00:23]}  Bc8 {[%clk 0:00:09]} 30. g4 {[%clk 0:00:23]}  Bxf5 {[%clk 0:00:09]} 31. gxf5 {[%clk 0:00:24]}  dxc4 {[%clk 0:00:09]} 32. Kh1 {[%clk 0:00:22]}  Kh8 {[%clk 0:00:09]} 33. Ng3 {[%clk 0:00:20]}  e3 {[%clk 0:00:07]} 34. fxe3 {[%clk 0:00:18]}  Rxe3 {[%clk 0:00:08]} 35. f6 {[%clk 0:00:18]}  Rg8 {[%clk 0:00:07]} 36. Be4 {[%clk 0:00:15]}  Rxe4 {[%clk 0:00:07]} 37. Nxe4 {[%clk 0:00:16]}  Qd5 {[%clk 0:00:07]} 38. Qf3 {[%clk 0:00:15]}  Bd4 {[%clk 0:00:05]} 39. h4 {[%clk 0:00:13]}  c3 {[%clk 0:00:05]} 40. Kh2 {[%clk 0:00:13]}  c2 {[%clk 0:00:05]} 41. Ng5 {[%clk 0:00:13]}  Be5+ {[%clk 0:00:03]} 42. Kg2 {[%clk 0:00:07]}  Rxg5+ {[%clk 0:00:02]} 43. hxg5 {[%clk 0:00:06]}  Qxf3+ {[%clk 0:00:03]} 44. Kxf3 {[%clk 0:00:07]}  Bb2 {[%clk 0:00:01]} 45. Re1 {[%clk 0:00:08]}  h6 {[%clk 0:00:02]} 46. g6 {[%clk 0:00:06]}  fxg6 {[%clk 0:00:02]} 47. Re8+ {[%clk 0:00:05]}  Kh7 {[%clk 0:00:03]} 48. f7 {[%clk 0:00:04]}  c1=Q {[%clk 0:00:03]} 49. f8=Q {[%clk 0:00:03]}  Qf1+ {[%clk 0:00:03]} 50. Ke4 {[%clk 0:00:04]}  Qxf8 {[%clk 0:00:04]} 51. Rxf8 {[%clk 0:00:04]}  Bd4 {[%clk 0:00:04]} 52. Ra8 {[%clk 0:00:04]}  h5 {[%clk 0:00:04]} 53. Rxa6 {[%clk 0:00:04]}  Kh6 {[%clk 0:00:05]} 54. Kf4 {[%clk 0:00:02]}  Bc3 {[%clk 0:00:03]} 55. Rc6 {[%clk 0:00:02]}  Bd4 {[%clk 0:00:03]} 56. Rc8 {[%clk 0:00:03]}  Bg1 {[%clk 0:00:02]} 57. Rh8+ {[%clk 0:00:02]}  Kg7 {[%clk 0:00:02]} 58. Re8 {[%clk 0:00:03]}  Bd4 {[%clk 0:00:02]} 59. Kg5 {[%clk 0:00:03]}  Bf6+ {[%clk 0:00:02]} 60. Kf4 {[%clk 0:00:03]}  Bd4 {[%clk 0:00:02]} 61. Rc8 {[%clk 0:00:04]}  Kf6 {[%clk 0:00:03]} 62. Rc6+ {[%clk 0:00:04]}  Kf7 {[%clk 0:00:03]} 63. Rc7+ {[%clk 0:00:02]}  Ke6 {[%clk 0:00:02]} 64. Rc6+ {[%clk 0:00:03]}  Kd5 {[%clk 0:00:03]} 65. Rxg6 {[%clk 0:00:03]}  c4 {[%clk 0:00:03]} 66. Rg5+ {[%clk 0:00:03]}  Kc6 {[%clk 0:00:03]} 67. Ke4 {[%clk 0:00:04]}  Bh8 {[%clk 0:00:03]} 68. Rxh5 {[%clk 0:00:04]}  Bg7 {[%clk 0:00:03]} 69. Rh7 {[%clk 0:00:04]}  Ba1 {[%clk 0:00:03]} 70. Rh1 {[%clk 0:00:04]}  Bb2 {[%clk 0:00:02]} 71. Rh6+ {[%clk 0:00:03]}  Kb5 {[%clk 0:00:02]} 72. Rh2 {[%clk 0:00:02]}  c3 {[%clk 0:00:01]} 73. Kd3 {[%clk 0:00:02]}  Ka4 {[%clk 0:00:02]} 74. Kc2 {[%clk 0:00:03]}  Ka3 {[%clk 0:00:02]} 75. Rh5 {[%clk 0:00:03]}  Ka4 {[%clk 0:00:02]} 76. Rh7 {[%clk 0:00:03]}  Ba3 {[%clk 0:00:02]} 77. Ra7+ {[%clk 0:00:03]}  Kb5 {[%clk 0:00:03]} 78. Kb3 {[%clk 0:00:04]}  Kc5 {[%clk 0:00:02]} 79. Rh7 {[%clk 0:00:04]}  Kb5 {[%clk 0:00:03]} 80. Rh5+ {[%clk 0:00:04]}  Kc6 {[%clk 0:00:03]} 81. Rh2 {[%clk 0:00:05]}  Kb5 {[%clk 0:00:03]} 82. Rg2 {[%clk 0:00:05]}  Kc6 {[%clk 0:00:03]} 83. Kc4 {[%clk 0:00:05]}  Kb6 {[%clk 0:00:03]} 84. Rg6+ {[%clk 0:00:04]}  Kc7 {[%clk 0:00:04]} 85. Kd5 {[%clk 0:00:04]}  Kb7 {[%clk 0:00:03]} 86. Rc6 {[%clk 0:00:04]}  Ka7 {[%clk 0:00:02]} 87. Rc4 {[%clk 0:00:03]}  Kb6 {[%clk 0:00:02]} 88. Rc5 {[%clk 0:00:03]}  Kb7 {[%clk 0:00:01]} 89. Rc6 {[%clk 0:00:03]}  Ka7 {[%clk 0:00:01]} 90. Ke6 {[%clk 0:00:02]}  Kb7 {[%clk 0:00:02]} 91. Kd7 {[%clk 0:00:03]}  Ka7 {[%clk 0:00:02]} 92. Kc7 {[%clk 0:00:03]}  Bc1 {[%clk 0:00:01]} 93. Rc4 {[%clk 0:00:03]}  Be3 {[%clk 0:00:01]} 94. Kd6 {[%clk 0:00:02]}  Kb6 {[%clk 0:00:01]} 95. Rxb4+ {[%clk 0:00:02]}  Ka5 {[%clk 0:00:02]} 96. Rc4 {[%clk 0:00:02]}  Bd2 {[%clk 0:00:02]} 97. Kc5 {[%clk 0:00:03]}  Ka6 {[%clk 0:00:02]} 98. Kd4 {[%clk 0:00:03]}  Ka5 {[%clk 0:00:02]} 99. Kd3 {[%clk 0:00:04]}  Kb5 {[%clk 0:00:02]} 100. Rc8 {[%clk 0:00:04]}  Ka5 {[%clk 0:00:03]} 101. Kc2 {[%clk 0:00:04]}  Ka4 {[%clk 0:00:03]} 102. Rc4+ {[%clk 0:00:04]}  Kb5 {[%clk 0:00:03]} 103. Kb3 {[%clk 0:00:05]}  Ka5 {[%clk 0:00:04]} 104. a4 {[%clk 0:00:05]}  Kb6 {[%clk 0:00:04]} 105. Rb4+ {[%clk 0:00:05]}  Ka6 {[%clk 0:00:05]} 106. Rg4 {[%clk 0:00:05]}  Kb6 {[%clk 0:00:05]} 107. Rg6+ {[%clk 0:00:06]}  Ka5 {[%clk 0:00:05]} 108. Re6 {[%clk 0:00:06]}  c2 {[%clk 0:00:03]} 109. Kxc2 {[%clk 0:00:07]}  Bb4 {[%clk 0:00:04]} 110. Kb3 {[%clk 0:00:07]}  Bd2 {[%clk 0:00:04]} 111. Re5+ {[%clk 0:00:07]}  Ka6 {[%clk 0:00:04]} 112. Kc4 {[%clk 0:00:08]}  Ka7 {[%clk 0:00:03]} 113. Kb5 {[%clk 0:00:07]}  Bf4 {[%clk 0:00:04]} 114. Re7+ {[%clk 0:00:06]}  Kb8 {[%clk 0:00:04]} 115. Kc6 {[%clk 0:00:06]}  Bg3 {[%clk 0:00:03]} 116. Rf7 {[%clk 0:00:05]}  Bh2 {[%clk 0:00:04]} 117. Rf5 {[%clk 0:00:05]}  Bg1 {[%clk 0:00:03]} 118. Rg5 {[%clk 0:00:04]}  Be3 {[%clk 0:00:03]} 119. Rb5+ {[%clk 0:00:04]}  Ka7 {[%clk 0:00:03]} 120. Re5 {[%clk 0:00:03]}  Bg1 {[%clk 0:00:04]} 121. Ra5+ {[%clk 0:00:03]}  Kb8 {[%clk 0:00:02]} 122. Ra6 {[%clk 0:00:03]}  Bf2 {[%clk 0:00:02]} 123. Kb5 {[%clk 0:00:04]}  Bg1 {[%clk 0:00:02]} 124. Rg6 {[%clk 0:00:04]}  Bf2 {[%clk 0:00:03]} 125. Ka6 {[%clk 0:00:05]}  Be3 {[%clk 0:00:02]} 126. Rg8+ {[%clk 0:00:04]}  Kc7 {[%clk 0:00:02]} 127. Rg3 {[%clk 0:00:05]}  Bf2 {[%clk 0:00:02]} 128. Rb3 {[%clk 0:00:06]}  Bg1 {[%clk 0:00:02]} 129. Rc3+ {[%clk 0:00:04]}  Kb8 {[%clk 0:00:02]} 130. Rc2 {[%clk 0:00:03]}  Be3 {[%clk 0:00:02]} 131. Re2 {[%clk 0:00:02]}  Bd4 {[%clk 0:00:03]} 132. Re4 {[%clk 0:00:02]}  Bg1 {[%clk 0:00:03]} 133. Rg4 {[%clk 0:00:03]}  Bf2 {[%clk 0:00:04]} 134. Rg8+ {[%clk 0:00:03]}  Kc7 {[%clk 0:00:02]} 135. Rf8 {[%clk 0:00:04]}  Bg1 {[%clk 0:00:03]} 136. Kb5 {[%clk 0:00:04]}  Be3 {[%clk 0:00:03]} 137. Rf7+ {[%clk 0:00:04]}  Kb8 {[%clk 0:00:02]} 138. Re7 {[%clk 0:00:04]}  Bg1 {[%clk 0:00:03]} 139. a5 {[%clk 0:00:03]}  Bf2 {[%clk 0:00:03]} 140. Ka6 {[%clk 0:00:03]}  Bg1 {[%clk 0:00:02]} 141. Re8+ {[%clk 0:00:03]}  Kc7 {[%clk 0:00:02]} 142. Re6 {[%clk 0:00:03]}  Bf2 {[%clk 0:00:02]} 143. Rb6 {[%clk 0:00:03]}  Bg1 {[%clk 0:00:01]} 144. Ka7 {[%clk 0:00:03]}  Bf2 {[%clk 0:00:01]} 145. Ka6 {[%clk 0:00:04]}  Bg1 {[%clk 0:00:02]} 146. Rb7+ {[%clk 0:00:04]}  Kc8 {[%clk 0:00:02]} 147. Rb2 {[%clk 0:00:05]}  Be3 {[%clk 0:00:01]} 148. Rc2+ {[%clk 0:00:05]}  Kb8 {[%clk 0:00:01]} 149. Re2 {[%clk 0:00:06]}  Bg1 {[%clk 0:00:01]} 150. Kb5 {[%clk 0:00:07]}  Bd4 {[%clk 0:00:01]} 151. Re8+ {[%clk 0:00:08]}  Kc7 {[%clk 0:00:01]} 152. Kc4 {[%clk 0:00:08]}  Bg1 {[%clk 0:00:01]} 153. Rg8 {[%clk 0:00:08]}  Bf2 {[%clk 0:00:02]} 154. Rg7+ {[%clk 0:00:08]}  Kb8 {[%clk 0:00:02]} 155. Kd5 {[%clk 0:00:08]}  Be3 {[%clk 0:00:02]} 156. Kc6 {[%clk 0:00:08]}  Bf2 {[%clk 0:00:02]} 157. a6 {[%clk 0:00:08]}  Be3 {[%clk 0:00:02]} 158. Re7 {[%clk 0:00:07]}  Bf2 {[%clk 0:00:02]} 159. Re8+ {[%clk 0:00:08]}  Ka7 {[%clk 0:00:01]} 160. Rf8 {[%clk 0:00:09]}  Bg1 {[%clk 0:00:01]} 161. Rf7+ {[%clk 0:00:07]}  Kb8 {[%clk 0:00:01]} 162. a7+ {[%clk 0:00:07]}  Ka8 {[%clk 0:00:01]} 163. Rg7 {[%clk 0:00:04]}  Bxa7 {[%clk 0:00:02]} 164. Rh7 {[%clk 0:00:03]}  Bb8 {[%clk 0:00:02]} 165. Kb6 {[%clk 0:00:04]}  Bd6 {[%clk 0:00:01]} 166. Ra7+ {[%clk 0:00:04]}  Kb8 {[%clk 0:00:01]} 167. Rd7 {[%clk 0:00:05]} 1-0


[Site "https://www.chess.com"]

[Event "Titled Tuesday Blitz September 13 Early 2022"]
[White "Cardoso Cardoso, Jose Gabriel"]
[Black "Tari, Aryan"]
[WhiteFideId "4430492"]
[BlackFideId "1510045"]
[WhiteElo "2485"]
[BlackElo "2612"]
[Result "0-1"]
[Round "06"]
[TimeControl "180+1"]
[Date "2022.09.13"]
[WhiteClock "0:00:04"]
[BlackClock "0:00:52"]

1. Nf3 {[%clk 0:03:00]}  d5 {[%clk 0:02:57]} 2. e3 {[%clk 0:03:01]}  Nf6 {[%clk 0:02:56]} 3. c4 {[%clk 0:03:00]}  e6 {[%clk 0:02:57]} 4. b3 {[%clk 0:02:58]}  c5 {[%clk 0:02:57]} 5. Bb2 {[%clk 0:02:53]}  Nc6 {[%clk 0:02:57]} 6. cxd5 {[%clk 0:02:51]}  exd5 {[%clk 0:02:56]} 7. Bb5 {[%clk 0:02:49]}  Be7 {[%clk 0:02:46]} 8. O-O {[%clk 0:02:48]}  O-O {[%clk 0:02:43]} 9. d4 {[%clk 0:02:45]}  Ne4 {[%clk 0:02:43]} 10. dxc5 {[%clk 0:02:34]}  Bxc5 {[%clk 0:02:38]} 11. Nc3 {[%clk 0:02:25]}  Qa5 {[%clk 0:02:06]} 12. Bxc6 {[%clk 0:00:35]}  bxc6 {[%clk 0:02:07]} 13. Rc1 {[%clk 0:00:32]}  Ba6 {[%clk 0:01:57]} 14. Re1 {[%clk 0:00:30]}  Bb4 {[%clk 0:01:53]} 15. Nxe4 {[%clk 0:00:28]}  dxe4 {[%clk 0:01:37]} 16. Qd4 {[%clk 0:00:22]}  f6 {[%clk 0:01:38]} 17. Qxe4 {[%clk 0:00:17]}  Bxe1 {[%clk 0:01:37]} 18. Rxe1 {[%clk 0:00:16]}  Qxa2 {[%clk 0:01:31]} 19. Bd4 {[%clk 0:00:09]}  Qxb3 {[%clk 0:01:28]} 20. Qxc6 {[%clk 0:00:09]}  Bb7 {[%clk 0:01:27]} 21. Qd7 {[%clk 0:00:06]}  Bxf3 {[%clk 0:01:26]} 22. gxf3 {[%clk 0:00:07]}  a5 {[%clk 0:01:25]} 23. Kh1 {[%clk 0:00:06]}  a4 {[%clk 0:01:21]} 24. Rg1 {[%clk 0:00:06]}  Qf7 {[%clk 0:01:20]} 25. Qf5 {[%clk 0:00:04]}  a3 {[%clk 0:01:18]} 26. h4 {[%clk 0:00:04]}  a2 {[%clk 0:01:18]} 27. h5 {[%clk 0:00:04]}  h6 {[%clk 0:01:16]} 28. Kh2 {[%clk 0:00:03]}  Kh8 {[%clk 0:01:14]} 29. Ba1 {[%clk 0:00:03]}  Rfd8 {[%clk 0:01:08]} 30. f4 {[%clk 0:00:03]}  Rd5 {[%clk 0:01:07]} 31. Qe4 {[%clk 0:00:02]}  Rxh5+ {[%clk 0:01:05]} 32. Kg3 {[%clk 0:00:02]}  Re8 {[%clk 0:01:06]} 33. Qf3 {[%clk 0:00:02]}  Rb5 {[%clk 0:01:01]} 34. Kg2 {[%clk 0:00:02]}  Rb1 {[%clk 0:01:01]} 35. Qc6 {[%clk 0:00:01]}  Rxg1+ {[%clk 0:00:59]} 36. Kxg1 {[%clk 0:00:02]}  Qg6+ {[%clk 0:01:00]} 37. Kh2 {[%clk 0:00:02]}  Rg8 {[%clk 0:00:58]} 38. Qe6 {[%clk 0:00:02]}  Qb1 {[%clk 0:00:52]} 39. Bxf6 {[%clk 0:00:03]}  gxf6 {[%clk 0:00:52]} 40. Qxf6+ {[%clk 0:00:03]}  Kh7 {[%clk 0:00:52]} 41. Qe7+ {[%clk 0:00:04]}  Rg7 {[%clk 0:00:52]} 0-1


[Site "https://www.chess.com"]

[Event "Titled Tuesday Blitz September 13 Early 2022"]
[White "Gokerkan, Cem Kaan"]
[Black "Terry, Renato"]
[WhiteFideId "6336760"]
[BlackFideId "3803457"]
[WhiteElo "2364"]
[BlackElo "2577"]
[Result "1-0"]
[Round "06"]
[TimeControl "180+1"]
[Date "2022.09.13"]
[WhiteClock "0:01:10"]
[BlackClock "0:01:53"]

1. e4 {[%clk 0:03:00]}  e6 {[%clk 0:02:57]} 2. d4 {[%clk 0:03:01]}  d5 {[%clk 0:02:57]} 3. Nd2 {[%clk 0:03:02]}  Be7 {[%clk 0:02:57]} 4. Ngf3 {[%clk 0:03:02]}  Nf6 {[%clk 0:02:58]} 5. Bd3 {[%clk 0:02:58]}  c5 {[%clk 0:02:58]} 6. exd5 {[%clk 0:02:55]}  Qxd5 {[%clk 0:02:57]} 7. dxc5 {[%clk 0:02:55]}  Qxc5 {[%clk 0:02:58]} 8. O-O {[%clk 0:02:55]}  Nbd7 {[%clk 0:02:58]} 9. Qe2 {[%clk 0:02:53]}  Qc7 {[%clk 0:02:58]} 10. Ne4 {[%clk 0:02:53]}  b6 {[%clk 0:02:57]} 11. Nxf6+ {[%clk 0:02:47]}  Bxf6 {[%clk 0:02:55]} 12. Qe4 {[%clk 0:02:16]}  Bb7 {[%clk 0:02:53]} 13. Qg4 {[%clk 0:02:16]}  h5 {[%clk 0:02:44]} 14. Qg3 {[%clk 0:01:43]}  Qxg3 {[%clk 0:02:43]} 15. hxg3 {[%clk 0:01:44]}  Nc5 {[%clk 0:02:38]} 16. Bb5+ {[%clk 0:01:41]}  Ke7 {[%clk 0:02:38]} 17. Rb1 {[%clk 0:01:27]}  Be4 {[%clk 0:02:35]} 18. Be3 {[%clk 0:01:22]}  Bxc2 {[%clk 0:02:29]} 19. Rbc1 {[%clk 0:01:22]}  Be4 {[%clk 0:02:30]} 20. b4 {[%clk 0:01:13]}  Nd3 {[%clk 0:01:53]} 21. Rc7+ {[%clk 0:01:13]}  Kd6 {[%clk 0:01:53]} 22. Rd7# {[%clk 0:01:10]} 1-0


[Site "https://www.chess.com"]

[Event "Titled Tuesday Blitz September 13 Early 2022"]
[White "Grandelius, Nils"]
[Black "Goltsev, Dmitry"]
[WhiteFideId "1710400"]
[BlackFideId "24176710"]
[WhiteElo "2617"]
[BlackElo "2257"]
[Result "1-0"]
[Round "06"]
[TimeControl "180+1"]
[Date "2022.09.13"]
[WhiteClock "0:01:13"]
[BlackClock "0:01:17"]

1. d4 {[%clk 0:03:00]}  Nf6 {[%clk 0:03:00]} 2. c4 {[%clk 0:03:01]}  e6 {[%clk 0:03:00]} 3. Nc3 {[%clk 0:03:02]}  Bb4 {[%clk 0:03:00]} 4. Qc2 {[%clk 0:03:02]}  Qe7 {[%clk 0:03:00]} 5. e3 {[%clk 0:02:55]}  b6 {[%clk 0:03:01]} 6. Ne2 {[%clk 0:02:55]}  Bb7 {[%clk 0:03:01]} 7. a3 {[%clk 0:02:55]}  Bxc3+ {[%clk 0:03:01]} 8. Nxc3 {[%clk 0:02:55]}  d6 {[%clk 0:03:02]} 9. Be2 {[%clk 0:02:46]}  Nbd7 {[%clk 0:02:57]} 10. O-O {[%clk 0:02:46]}  e5 {[%clk 0:02:57]} 11. d5 {[%clk 0:02:42]}  a5 {[%clk 0:02:56]} 12. e4 {[%clk 0:02:37]}  Nc5 {[%clk 0:02:54]} 13. Be3 {[%clk 0:02:35]}  O-O {[%clk 0:02:54]} 14. b4 {[%clk 0:02:33]}  axb4 {[%clk 0:02:48]} 15. axb4 {[%clk 0:02:34]}  Na6 {[%clk 0:02:46]} 16. Qb2 {[%clk 0:02:33]}  g6 {[%clk 0:02:28]} 17. Ra3 {[%clk 0:02:28]}  Nb8 {[%clk 0:02:28]} 18. Rxa8 {[%clk 0:02:22]}  Bxa8 {[%clk 0:02:29]} 19. c5 {[%clk 0:02:22]}  bxc5 {[%clk 0:02:27]} 20. bxc5 {[%clk 0:02:23]}  dxc5 {[%clk 0:02:25]} 21. Ra1 {[%clk 0:02:18]}  Nbd7 {[%clk 0:02:22]} 22. Ra7 {[%clk 0:02:18]}  Qd6 {[%clk 0:02:19]} 23. Qa3 {[%clk 0:02:07]}  Nxe4 {[%clk 0:02:02]} 24. Nxe4 {[%clk 0:02:04]}  Qxd5 {[%clk 0:02:02]} 25. Bf3 {[%clk 0:01:59]}  Kg7 {[%clk 0:02:01]} 26. Nd2 {[%clk 0:01:53]}  e4 {[%clk 0:01:57]} 27. Bxe4 {[%clk 0:01:53]}  Qh5 {[%clk 0:01:56]} 28. Rxa8 {[%clk 0:01:48]}  Qd1+ {[%clk 0:01:55]} 29. Nf1 {[%clk 0:01:49]}  Rxa8 {[%clk 0:01:55]} 30. Qxa8 {[%clk 0:01:48]}  Ne5 {[%clk 0:01:55]} 31. Qd5 {[%clk 0:01:44]}  Qxd5 {[%clk 0:01:49]} 32. Bxd5 {[%clk 0:01:44]}  h5 {[%clk 0:01:45]} 33. Bxc5 {[%clk 0:01:44]}  f6 {[%clk 0:01:46]} 34. Bd4 {[%clk 0:01:43]}  Nd3 {[%clk 0:01:44]} 35. Bc4 {[%clk 0:01:40]}  Nf4 {[%clk 0:01:44]} 36. Ne3 {[%clk 0:01:38]}  c6 {[%clk 0:01:39]} 37. g3 {[%clk 0:01:37]}  Nh3+ {[%clk 0:01:40]} 38. Kg2 {[%clk 0:01:36]}  Ng5 {[%clk 0:01:40]} 39. Nc2 {[%clk 0:01:31]}  Ne4 {[%clk 0:01:38]} 40. Bd3 {[%clk 0:01:28]}  Nd2 {[%clk 0:01:36]} 41. Nb4 {[%clk 0:01:26]}  g5 {[%clk 0:01:34]} 42. Nxc6 {[%clk 0:01:26]}  Kf7 {[%clk 0:01:31]} 43. Na5 {[%clk 0:01:21]}  g4 {[%clk 0:01:31]} 44. Nc4 {[%clk 0:01:16]}  Nf3 {[%clk 0:01:31]} 45. Bc3 {[%clk 0:01:15]}  h4 {[%clk 0:01:30]} 46. Ne3 {[%clk 0:01:13]}  h3+ {[%clk 0:01:24]} 47. Kh1 {[%clk 0:01:13]}  f5 {[%clk 0:01:17]} 48. Bxf5 {[%clk 0:01:13]} 1-0


[Site "https://www.chess.com"]

[Event "Titled Tuesday Blitz September 13 Early 2022"]
[White "Harsha Bharathakoti"]
[Black "Samunenkov, Ihor"]
[WhiteFideId "5078776"]
[BlackFideId "14187086"]
[WhiteElo "2523"]
[BlackElo "2441"]
[Result "1-0"]
[Round "06"]
[TimeControl "180+1"]
[Date "2022.09.13"]
[WhiteClock "0:00:09"]
[BlackClock "0:00:01"]

1. Nf3 {[%clk 0:03:00]}  c5 {[%clk 0:02:57]} 2. c4 {[%clk 0:03:00]}  Nc6 {[%clk 0:02:54]} 3. d4 {[%clk 0:03:00]}  cxd4 {[%clk 0:02:54]} 4. Nxd4 {[%clk 0:03:01]}  Nf6 {[%clk 0:02:55]} 5. Nc3 {[%clk 0:03:02]}  e6 {[%clk 0:02:55]} 6. g3 {[%clk 0:03:01]}  Qb6 {[%clk 0:02:55]} 7. Nb3 {[%clk 0:03:02]}  d5 {[%clk 0:02:30]} 8. cxd5 {[%clk 0:03:01]}  exd5 {[%clk 0:02:29]} 9. Be3 {[%clk 0:03:01]}  Qd8 {[%clk 0:02:11]} 10. Bg2 {[%clk 0:03:01]}  Bb4 {[%clk 0:02:11]} 11. O-O {[%clk 0:03:01]}  Bxc3 {[%clk 0:02:09]} 12. bxc3 {[%clk 0:03:02]}  O-O {[%clk 0:02:10]} 13. Bg5 {[%clk 0:02:45]}  h6 {[%clk 0:02:03]} 14. Bxf6 {[%clk 0:02:42]}  Qxf6 {[%clk 0:02:04]} 15. Qxd5 {[%clk 0:02:41]}  Qxc3 {[%clk 0:01:59]} 16. Rfc1 {[%clk 0:02:40]}  Qf6 {[%clk 0:01:54]} 17. Nc5 {[%clk 0:02:38]}  Rd8 {[%clk 0:01:48]} 18. Qc4 {[%clk 0:02:33]}  Rb8 {[%clk 0:01:44]} 19. Rab1 {[%clk 0:02:26]}  Nd4 {[%clk 0:01:26]} 20. Ne4 {[%clk 0:02:15]}  Qe7 {[%clk 0:01:18]} 21. e3 {[%clk 0:02:13]}  Be6 {[%clk 0:01:15]} 22. Qf1 {[%clk 0:02:09]}  Nc6 {[%clk 0:01:02]} 23. Rb2 {[%clk 0:01:38]}  Bd5 {[%clk 0:00:58]} 24. Nc5 {[%clk 0:01:29]}  Bxg2 {[%clk 0:00:55]} 25. Qxg2 {[%clk 0:01:24]}  Rd6 {[%clk 0:00:46]} 26. Qe4 {[%clk 0:01:19]}  b6 {[%clk 0:00:37]} 27. Qxe7 {[%clk 0:01:12]}  Nxe7 {[%clk 0:00:38]} 28. Ne4 {[%clk 0:01:03]}  Rd7 {[%clk 0:00:37]} 29. Rbc2 {[%clk 0:01:04]}  Rbd8 {[%clk 0:00:37]} 30. Kg2 {[%clk 0:01:04]}  Nd5 {[%clk 0:00:37]} 31. g4 {[%clk 0:01:03]}  g6 {[%clk 0:00:33]} 32. a3 {[%clk 0:01:00]}  Kg7 {[%clk 0:00:33]} 33. Rc6 {[%clk 0:00:55]}  Re7 {[%clk 0:00:30]} 34. Kf3 {[%clk 0:00:53]}  Re5 {[%clk 0:00:21]} 35. R1c4 {[%clk 0:00:46]}  Rde8 {[%clk 0:00:14]} 36. h4 {[%clk 0:00:40]}  b5 {[%clk 0:00:13]} 37. Rd4 {[%clk 0:00:40]}  a5 {[%clk 0:00:10]} 38. Nd6 {[%clk 0:00:33]}  R8e6 {[%clk 0:00:09]} 39. Rd2 {[%clk 0:00:13]}  b4 {[%clk 0:00:08]} 40. axb4 {[%clk 0:00:11]}  Nxb4 {[%clk 0:00:09]} 41. Rc7 {[%clk 0:00:11]}  Rf6+ {[%clk 0:00:06]} 42. Kg3 {[%clk 0:00:11]}  Nd5 {[%clk 0:00:06]} 43. Rxd5 {[%clk 0:00:09]}  Rxd5 {[%clk 0:00:03]} 44. Ne8+ {[%clk 0:00:09]}  Kf8 {[%clk 0:00:03]} 45. Nxf6 {[%clk 0:00:10]}  Rd6 {[%clk 0:00:04]} 46. Ne4 {[%clk 0:00:09]}  Rb6 {[%clk 0:00:02]} 47. Ra7 {[%clk 0:00:09]}  Rb4 {[%clk 0:00:02]} 48. Nd6 {[%clk 0:00:09]}  Rb6 {[%clk 0:00:02]} 49. Nxf7 {[%clk 0:00:09]}  a4 {[%clk 0:00:01]} 50. Ne5 {[%clk 0:00:09]} 1-0


[Site "https://www.chess.com"]

[Event "Titled Tuesday Blitz September 13 Early 2022"]
[White "Ibrahimli, Murad"]
[Black "Malek, Jan"]
[WhiteFideId "13410229"]
[BlackFideId "21864080"]
[WhiteElo "2109"]
[BlackElo "2172"]
[Result "1-0"]
[Round "06"]
[TimeControl "180+1"]
[Date "2022.09.13"]
[WhiteClock "0:01:37"]
[BlackClock "0:00:01"]

1. d4 {[%clk 0:03:00]}  Nf6 {[%clk 0:02:58]} 2. c4 {[%clk 0:03:01]}  c6 {[%clk 0:02:56]} 3. Nc3 {[%clk 0:02:59]}  d5 {[%clk 0:02:57]} 4. Nf3 {[%clk 0:02:58]}  e6 {[%clk 0:02:57]} 5. e3 {[%clk 0:02:58]}  Bd6 {[%clk 0:02:55]} 6. Qc2 {[%clk 0:02:58]}  O-O {[%clk 0:02:55]} 7. Bd3 {[%clk 0:02:58]}  dxc4 {[%clk 0:02:54]} 8. Bxc4 {[%clk 0:02:59]}  Nbd7 {[%clk 0:02:54]} 9. O-O {[%clk 0:02:58]}  Qe7 {[%clk 0:02:54]} 10. a3 {[%clk 0:02:55]}  e5 {[%clk 0:02:46]} 11. h3 {[%clk 0:02:51]}  h6 {[%clk 0:02:46]} 12. Nh4 {[%clk 0:02:50]}  Nb6 {[%clk 0:02:44]} 13. Ng6 {[%clk 0:02:43]}  Qd8 {[%clk 0:02:18]} 14. Ba2 {[%clk 0:02:37]}  exd4 {[%clk 0:02:05]} 15. Nxf8 {[%clk 0:02:16]}  dxc3 {[%clk 0:02:02]} 16. Ng6 {[%clk 0:02:16]}  Nbd5 {[%clk 0:01:48]} 17. Nf4 {[%clk 0:02:15]}  Bxf4 {[%clk 0:01:25]} 18. exf4 {[%clk 0:02:14]}  cxb2 {[%clk 0:00:43]} 19. Qxb2 {[%clk 0:02:13]}  Ne4 {[%clk 0:00:27]} 20. Rd1 {[%clk 0:02:04]}  Be6 {[%clk 0:00:21]} 21. Re1 {[%clk 0:01:47]}  Nec3 {[%clk 0:00:15]} 22. Bxd5 {[%clk 0:01:43]}  Nxd5 {[%clk 0:00:13]} 23. Qxb7 {[%clk 0:01:41]}  Rb8 {[%clk 0:00:02]} 24. Qxa7 {[%clk 0:01:41]}  Rb5 {[%clk 0:00:01]} 25. Qd4 {[%clk 0:01:37]} 1-0


[Site "https://www.chess.com"]